bitfinex/quotes_SOLUSD_20220114
["timestamp","ask_amount","ask_price","bid_price","bid_amount"]
[1642193019755,35.0,147.31,147.25,6.25012329]
[1642193020156,35.0,147.31,147.25,0.51012329]
[1642193020355,35.0,147.31,147.25,0.00012329]
[1642193021485,35.0,147.31,147.25,10.18232329]
[1642193021657,35.0,147.31,147.25,24.52632329]
[1642193021859,35.0,147.31,147.25,14.34412329]
[1642193023062,35.0,147.31,147.3,0.17494972]
[1642193023262,35.0,147.31,147.3,6.23934965]
[1642193023863,4.58045548,147.33,147.3,6.23934965]
[1642193024063,1.86545548,147.33,147.3,6.23934965]
[1642193024467,25.64845548,147.34,147.3,6.23934965]
[1642193024964,25.64845548,147.34,147.3,6.48934965]
[1642193025166,25.64845548,147.34,147.3,14.23434965]
[1642193025565,1.86545548,147.34,147.3,14.23434965]
[1642193025764,1.86545548,147.34,147.3,20.23434965]
[1642193025967,1.86545548,147.34,147.3,87.81434965]
[1642193026167,1.86545548,147.34,147.3,89.51512553]
[1642193026565,3.70666498,147.38,147.3,89.51512553]
[1642193026566,1.86545548,147.36,147.3,89.51512553]
[1642193027467,1.86545548,147.36,147.3,99.69312553]
[1642193028070,1.86545548,147.38,147.3,109.37312553]
[1642193029095,1.86545548,147.4,147.31,1.93785822]
[1642193029499,1.86545548,147.4,147.33,67.32]
[1642193029895,1.86545548,147.4,147.33,73.83]
[1642193030794,1.86545548,147.4,147.33,84.0062]
[1642193030996,1.86545548,147.4,147.33,91.69697588]
[1642193032796,1.86545548,147.4,147.36,0.17494972]
[1642193032995,1.86545548,147.4,147.36,10.34884972]
[1642193033196,1.86545548,147.4,147.36,16.85884972]
[1642193033596,26.71255548,147.42,147.36,16.85884972]
[1642193034699,26.71255548,147.42,147.36,84.17884972]
[1642193035097,1.86545548,147.42,147.36,84.17884972]
[1642193036901,1.86545548,147.43,147.36,84.17884972]
[1642193038104,1.86545548,147.43,147.36,16.85884972]
[1642193038403,4.57845548,147.43,147.36,0.17494972]
[1642193038605,4.82845548,147.43,147.36,0.17494972]
[1642193039205,23.0799,147.42,147.36,0.17494972]
[1642193039406,2.713,147.41,147.36,0.17494972]
[1642193040308,4.57845548,147.41,147.36,0.17494972]
[1642193040708,1.86545548,147.41,147.36,0.17494972]
[1642193041306,25.79336323,147.41,147.36,0.17494972]
[1642193041508,23.1462,147.4,147.36,0.17494972]
[1642193041708,2.714,147.39,147.36,0.17494972]
[1642193041908,25.8602,147.4,147.36,0.17494972]
[1642193042309,1.86545548,147.41,147.36,0.17494972]
[1642193042708,1.86545548,147.4,147.36,0.17494972]
[1642193043409,1.86545548,147.41,147.36,0.17494972]
[1642193044309,1.86545548,147.42,147.36,0.17494972]
[1642193044913,1.86545548,147.42,147.37,67.32]
[1642193045313,1.86545548,147.42,147.38,1.70077588]
[1642193045515,1.86545548,147.42,147.38,8.21077588]
[1642193045716,1.86545548,147.42,147.39,67.32]
[1642193045918,1.86545548,147.42,147.4,6.06439993]
[1642193046318,1.86545548,147.42,147.4,12.31439993]
[1642193046517,1.86545548,147.44,147.4,12.31439993]
[1642193047121,1.86545548,147.44,147.4,12.06439993]
[1642193047319,1.86545548,147.45,147.4,12.06439993]
[1642193047520,4.57845548,147.45,147.4,12.06439993]
[1642193047751,14.75405548,147.45,147.4,6.06439993]
[1642193047946,15.00405548,147.45,147.36,9.85494972]
[1642193048147,15.00405548,147.45,147.36,15.85494972]
[1642193048347,1.86545548,147.42,147.36,83.17494972]
[1642193048547,1.86545548,147.42,147.36,83.42494972]
[1642193049548,1.86545548,147.42,147.36,83.68494972]
[1642193049749,1.86545548,147.43,147.36,83.68494972]
[1642193050552,1.86545548,147.42,147.36,83.68494972]
[1642193051150,1.86545548,147.42,147.36,83.42494972]
[1642193051354,1.86545548,147.42,147.36,16.10494972]
[1642193052554,1.86545548,147.42,147.36,16.36494972]
[1642193053253,1.69050576,147.42,147.36,16.19]
[1642193057161,1.69050576,147.42,147.36,83.51]
[1642193058264,1.69050576,147.42,147.36,93.6843]
[1642193058864,1.69050576,147.42,147.36,101.8843]
[1642193059065,52.11716498,147.46,147.36,101.8843]
[1642193059665,48.4105,147.46,147.36,101.8843]
[1642193061367,52.11716498,147.46,147.36,101.8843]
[1642193062167,48.4105,147.46,147.36,101.8843]
[1642193062570,24.3961,147.46,147.36,101.8843]
[1642193068572,54.55736679,147.46,147.36,101.8843]
[1642193068772,54.55736679,147.46,147.36,15.94]
[1642193068975,2.713,147.45,147.36,15.68]
[1642193069773,13.1387,147.45,147.36,6.0]
[1642193069974,13.1387,147.45,147.36,0.25]
[1642193070174,13.1387,147.45,147.33,93.3412]
[1642193070977,13.1387,147.45,147.33,93.6012]
[1642193071177,13.1387,147.45,147.33,93.3412]
[1642193071476,16.84536498,147.45,147.33,93.3412]
[1642193072477,16.84536498,147.45,147.33,93.6012]
[1642193072676,16.84536498,147.45,147.33,93.3512]
[1642193072877,16.84536498,147.45,147.33,15.68]
[1642193073578,16.84536498,147.45,147.33,9.68]
[1642193073776,93.84536498,147.45,147.33,9.68]
[1642193074004,13.52638927,147.44,147.33,9.68]
[1642193074277,22.7248091,147.4,147.33,9.68]
[1642193074479,2.714,147.39,147.32,67.32]
[1642193074680,2.714,147.39,147.32,65.82]
[1642193075077,2.714,147.39,147.32,72.07]
[1642193075281,8.714,147.39,147.32,72.07]
[1642193075479,2.714,147.39,147.32,72.07]
[1642193075880,2.714,147.39,147.32,72.33]
[1642193076482,2.714,147.39,147.32,6.51]
[1642193076684,2.714,147.39,147.32,0.25]
[1642193076882,2.714,147.39,147.32,6.25]
[1642193078183,13.1438,147.39,147.32,0.25]
[1642193078385,36.8493,147.39,147.32,0.25]
[1642193078587,36.8493,147.39,147.26,13.55516564]
[1642193078787,60.9954,147.39,147.26,13.55516564]
[1642193078988,60.9954,147.39,147.26,19.55516564]
[1642193079888,72.37617588,147.39,147.26,9.68]
[1642193080087,79.94017588,147.39,147.26,15.68]
[1642193080289,96.0647245,147.39,147.26,15.68]
[1642193080588,10.1836,147.34,147.25,0.00012329]
[1642193080789,36.00197307,147.34,147.25,0.00012329]
[1642193080989,36.25197307,147.34,147.25,0.00012329]
[1642193081191,22.8744,147.33,147.25,0.00012329]
[1642193081617,33.0583,147.33,147.25,0.00012329]
[1642193081818,33.3083,147.33,147.25,0.00012329]
[1642193082016,62.58805959,147.33,147.25,0.00012329]
[1642193082819,10.1863,147.3,147.25,0.00012329]
[1642193084321,10.4363,147.3,147.25,0.00012329]
[1642193085020,10.1877,147.28,147.25,0.00012329]
[1642193085919,10.4377,147.28,147.25,0.00012329]
[1642193087520,23.3526,147.27,147.25,0.00012329]
[1642193087721,33.5407,147.27,147.25,0.00012329]
[1642193088418,23.3526,147.27,147.25,0.00012329]
[1642193089921,33.5407,147.27,147.25,0.00012329]
[1642193090322,2.716,147.29,147.25,0.00012329]
[1642193090520,3.70666498,147.32,147.26,9.68]
[1642193090720,3.70666498,147.32,147.26,11.38077588]
[1642193090923,3.70666498,147.32,147.27,67.32]
[1642193091119,3.70666498,147.32,147.28,9.68]
[1642193091521,31.30762806,147.35,147.28,15.68]
[1642193091722,31.30762806,147.35,147.28,9.68]
[1642193091920,41.49012806,147.35,147.28,15.68]
[1642193092119,37.78346308,147.35,147.28,15.68]
[1642193092519,27.60096308,147.35,147.28,15.93]
[1642193092922,27.60096308,147.35,147.28,6.25]
[1642193093122,37.78366308,147.35,147.28,6.0]
[1642193093321,37.78366308,147.35,147.25,15.68012329]
[1642193093521,27.2741,147.34,147.25,15.68012329]
[1642193093924,27.5241,147.34,147.25,15.68012329]
[1642193094122,94.8441,147.34,147.25,9.68012329]
[1642193094324,26.9221608,147.32,147.25,0.00012329]
[1642193094522,26.5888,147.31,147.25,0.00012329]
[1642193094723,9.68,147.3,147.25,0.00012329]
[1642193094923,27.04773743,147.29,147.25,0.00012329]
[1642193095124,2.716,147.28,147.25,0.00012329]
[1642193095325,10.1888,147.27,147.25,0.00012329]
[1642193095724,63.8969,147.26,147.25,0.00012329]
[1642193106938,23.8969,147.26,147.25,0.00012329]
[1642193109840,2.716,147.29,147.25,0.00012329]
[1642193110040,9.68,147.3,147.25,0.00012329]
[1642193110439,26.2652,147.32,147.25,0.00012329]
[1642193110738,26.2652,147.32,147.25,6.64112329]
[1642193110939,26.2652,147.32,147.25,12.89112329]
[1642193111741,23.5492,147.32,147.25,13.15112329]
[1642193112140,22.6573,147.33,147.25,13.15112329]
[1642193112542,22.6573,147.33,147.26,67.32]
[1642193112944,22.6573,147.33,147.26,73.83]
[1642193113943,22.6573,147.33,147.27,10.1804]
[1642193114342,22.6573,147.33,147.27,16.6904]
[1642193114944,22.6573,147.33,147.27,16.4404]
[1642193115450,22.6573,147.33,147.27,6.26]
[1642193115747,22.6573,147.33,147.27,0.26]
[1642193115945,22.6573,147.33,147.27,6.0]
[1642193116145,22.6573,147.33,147.27,6.26]
[1642193116345,22.6573,147.33,147.27,6.51]
[1642193117046,2.715,147.35,147.27,6.51]
[1642193117246,58.48199573,147.36,147.27,0.51]
[1642193117448,58.48199573,147.36,147.27,6.0]
[1642193117945,27.4562,147.36,147.27,6.749]
[1642193118346,24.7412,147.36,147.27,12.749]
[1642193118747,9.68,147.37,147.27,22.9295]
[1642193120150,26.9524,147.38,147.27,22.9295]
[1642193121451,26.9524,147.38,147.27,22.6695]
[1642193122052,26.9524,147.38,147.27,89.9895]
[1642193123079,26.9524,147.38,147.27,90.2495]
[1642193129984,24.2374,147.38,147.27,90.2495]
[1642193130387,24.2374,147.38,147.27,99.9295]
[1642193130789,24.2374,147.38,147.27,99.6795]
[1642193130987,24.4874,147.38,147.27,9.68]
[1642193131189,44.3479,147.38,147.26,35.720876]
[1642193131388,2.715,147.37,147.26,35.720876]
[1642193132190,2.715,147.37,147.26,45.901976]
[1642193132388,6.42166498,147.4,147.27,79.02474887]
[1642193132589,3.70666498,147.4,147.27,90.65374887]
[1642193132792,3.70666498,147.4,147.28,1.70077588]
[1642193132988,3.70666498,147.4,147.32,0.30061058]
[1642193133189,3.70666498,147.4,147.36,10.173]
[1642193133388,3.70666498,147.4,147.36,25.978]
[1642193133587,3.70666498,147.4,147.37,69.02077588]
[1642193133789,3.70666498,147.43,147.38,15.74439993]
[1642193133991,3.70666498,147.43,147.38,22.25439993]
[1642193134288,3.70666498,147.43,147.38,91.27517581]
[1642193134689,3.70666498,147.43,147.38,89.57439993]
[1642193135292,24.6027,147.47,147.38,89.57439993]
[1642193135492,2.713,147.45,147.38,32.42659993]
[1642193135691,2.713,147.46,147.38,32.42659993]
[1642193136492,2.713,147.46,147.38,32.16659993]
[1642193138394,2.713,147.46,147.38,32.42659993]
[1642193138998,2.713,147.46,147.38,32.16659993]
[1642193140402,2.713,147.46,147.38,31.91659993]
[1642193140599,12.8879,147.46,147.38,21.74439993]
[1642193140798,13.1379,147.46,147.38,21.74439993]
[1642193141905,13.1379,147.46,147.38,21.99439993]
[1642193143203,16.84456498,147.46,147.38,21.99439993]
[1642193144503,16.84456498,147.46,147.38,21.74439993]
[1642193144702,16.84456498,147.46,147.38,12.06439993]
[1642193144902,26.52456498,147.46,147.3,13.55516564]
[1642193145103,10.1793,147.4,147.34,0.25]
[1642193145300,24.26766159,147.39,147.34,0.25]
[1642193146204,6.42066498,147.44,147.3,16.19]
[1642193146405,23.1058,147.43,147.3,16.19]
[1642193146606,2.714,147.42,147.3,16.19]
[1642193147005,26.66152189,147.41,147.3,16.19]
[1642193147406,23.1506,147.4,147.32,10.178]
[1642193147808,23.1506,147.4,147.32,16.688]
[1642193151311,23.1506,147.4,147.33,9.68]
[1642193151609,23.1506,147.4,147.35,10.1758]
[1642193152009,23.1506,147.4,147.35,16.6858]
[1642193153314,23.1506,147.4,147.35,16.4258]
[1642193154316,22.75001443,147.39,147.35,16.4258]
[1642193154514,22.75001443,147.39,147.35,6.25]
[1642193154914,22.75001443,147.39,147.35,0.25]
[1642193155117,22.75001443,147.39,147.31,15.93]
[1642193155718,22.75001443,147.39,147.31,26.1085]
[1642193155918,22.75001443,147.39,147.31,26.3685]
[1642193157141,22.75001443,147.39,147.31,93.6885]
[1642193157541,22.75001443,147.39,147.31,26.3685]
[1642193160243,23.1506,147.4,147.31,26.3685]
[1642193160845,23.1506,147.4,147.31,26.1085]
[1642193161049,2.714,147.39,147.31,26.1085]
[1642193161244,23.92132443,147.38,147.31,26.1085]
[1642193161446,23.92132443,147.38,147.31,15.93]
[1642193161644,23.92132443,147.38,147.31,9.93]
[1642193161846,23.92132443,147.38,147.31,0.25]
[1642193162044,23.92132443,147.38,147.29,16.43]
[1642193162444,34.10182443,147.38,147.29,16.43]
[1642193162646,23.697,147.37,147.29,16.43]
[1642193163745,23.697,147.37,147.29,16.69]
[1642193164152,23.697,147.37,147.29,6.0]
[1642193164345,23.947,147.37,147.27,20.05656564]
[1642193164545,2.715,147.36,147.27,20.05656564]
[1642193164746,2.715,147.36,147.27,9.87516564]
[1642193165448,2.715,147.36,147.27,10.12516564]
[1642193166052,2.715,147.36,147.27,6.25]
[1642193166355,12.8973,147.36,147.27,6.25]
[1642193166650,22.7457,147.35,147.27,6.25]
[1642193167253,22.7457,147.35,147.27,0.51]
[1642193167550,22.7457,147.35,147.27,0.26]
[1642193167750,22.7457,147.35,147.27,10.1816]
[1642193167950,22.7457,147.35,147.27,16.6916]
[1642193168351,2.715,147.36,147.27,18.39237588]
[1642193168555,23.92132443,147.38,147.27,18.39237588]
[1642193168556,22.5619,147.37,147.27,18.39237588]
[1642193168752,22.5619,147.37,147.27,85.71237588]
[1642193169151,22.5619,147.37,147.27,85.46237588]
[1642193170051,22.5619,147.37,147.27,18.14237588]
[1642193170251,22.5619,147.37,147.27,16.4416]
[1642193170454,22.5619,147.37,147.28,3.87330243]
[1642193170651,25.2769,147.37,147.29,10.1799]
[1642193170851,25.2769,147.37,147.29,77.4999]
[1642193171055,25.2769,147.37,147.29,84.0099]
[1642193171358,25.2769,147.37,147.29,16.6899]
[1642193173256,25.2769,147.37,147.33,35.720876]
[1642193173458,25.2769,147.37,147.33,35.970876]
[1642193174066,24.7769,147.37,147.33,35.970876]
[1642193174355,24.7769,147.37,147.33,35.720876]
[1642193174558,35.2082,147.37,147.33,35.720876]
[1642193174856,34.9582,147.37,147.33,35.720876]
[1642193176057,35.2082,147.37,147.33,35.720876]
[1642193176761,37.12412136,147.37,147.33,35.720876]
[1642193178963,43.12412136,147.37,147.33,35.720876]
[1642193179362,37.12412136,147.37,147.33,35.720876]
[1642193180064,43.12412136,147.37,147.33,35.720876]
[1642193180264,40.40912136,147.37,147.33,35.720876]
[1642193180468,1.91592136,147.36,147.33,35.720876]
[1642193180664,12.09792136,147.36,147.33,35.720876]
[1642193180865,12.34792136,147.36,147.33,35.720876]
[1642193181271,10.432,147.36,147.33,35.720876]
[1642193183005,12.34792136,147.36,147.33,35.720876]
[1642193184310,12.34792136,147.36,147.27,1.93669189]
[1642193184515,52.47051674,147.35,147.27,2.18669189]
[1642193184714,28.13798722,147.31,147.26,1.93669189]
[1642193185109,28.38798722,147.31,147.26,1.93669189]
[1642193185713,28.38798722,147.31,147.25,0.00012329]
[1642193186312,38.57388722,147.31,147.25,0.00012329]
[1642193186912,10.4359,147.31,147.25,0.00012329]
[1642193187213,1.91592136,147.33,147.25,0.00012329]
[1642193187911,30.44116905,147.33,147.25,0.00012329]
[1642193188114,40.62566905,147.33,147.25,0.00012329]
[1642193188714,38.95974769,147.33,147.25,0.00012329]
[1642193190615,40.87566905,147.33,147.25,0.00012329]
[1642193191417,38.95974769,147.33,147.25,0.00012329]
[1642193192717,28.52524769,147.33,147.25,0.00012329]
[1642193193417,28.52524769,147.33,147.25,1.93681518]
[1642193193819,28.52524769,147.33,147.25,8.44681518]
[1642193194050,28.52524769,147.33,147.25,18.36921518]
[1642193194349,28.52524769,147.33,147.25,8.18681518]
[1642193194547,28.52524769,147.33,147.26,1.93669189]
[1642193194948,28.52524769,147.33,147.26,8.18669189]
[1642193195948,28.52524769,147.33,147.26,6.25]
[1642193196148,28.52524769,147.33,147.26,0.25]
[1642193196349,28.52524769,147.33,147.26,6.25]
[1642193196748,28.52524769,147.33,147.25,7.93681518]
[1642193196951,9.68,147.32,147.25,7.93681518]
[1642193197149,27.71035109,147.3,147.25,1.93681518]
[1642193197350,12.9026,147.29,147.25,1.93681518]
[1642193197550,13.1526,147.29,147.25,1.93681518]
[1642193197751,9.68,147.28,147.25,1.93681518]
[1642193197954,27.03496987,147.27,147.25,1.93681518]
[1642193198152,27.03496987,147.27,147.25,0.00012329]
[1642193198355,37.22396987,147.27,147.25,0.00012329]
[1642193198553,37.47396987,147.27,147.25,0.00012329]
[1642193199351,65.716,147.26,147.25,0.00012329]
[1642193199553,65.966,147.26,147.25,0.00012329]
[1642193203958,63.25,147.26,147.25,0.00012329]
[1642193206359,72.93,147.26,147.25,0.00012329]
[1642193206563,80.0,147.25,147.15,3.87516564]
[1642193206761,10.195,147.2,147.15,3.87516564]
[1642193206963,28.01364217,147.18,147.15,3.87516564]
[1642193207166,9.68,147.17,147.15,3.87516564]
[1642193207363,9.68,147.17,147.12,5.76907271]
[1642193207563,9.68,147.17,147.12,5.26907271]
[1642193207762,9.93,147.17,147.12,5.26907271]
[1642193208064,9.93,147.17,147.08,5.26907271]
[1642193208263,34.8528,147.17,147.08,5.26907271]
[1642193208865,44.7979,147.17,147.08,5.26907271]
[1642193209064,44.7979,147.17,147.07,71.19728091]
[1642193209464,44.7979,147.17,147.07,4.12728091]
[1642193209865,44.7979,147.17,147.07,10.38728091]
[1642193210066,44.7979,147.17,147.07,9.88728091]
[1642193210264,44.7979,147.17,147.08,3.37728091]
[1642193210465,44.7979,147.17,147.08,9.88728091]
[1642193212365,44.7979,147.17,147.08,6.51]
[1642193214367,44.7979,147.17,147.08,0.51]
[1642193214568,44.7979,147.17,147.07,16.7046]
[1642193217474,44.7979,147.17,147.07,16.4446]
[1642193217677,44.7979,147.17,147.07,6.25]
[1642193217876,45.0479,147.17,147.07,6.25]
[1642193218074,45.0479,147.17,147.07,6.0]
[1642193218275,23.34119694,147.15,147.07,6.0]
[1642193218476,10.1973,147.14,147.06,30.9802]
[1642193218677,10.1973,147.14,147.06,6.0]
[1642193218875,10.1973,147.14,147.05,279.096]
[1642193219076,10.1973,147.14,147.05,279.356]
[1642193219276,10.1973,147.14,147.05,273.096]
[1642193219475,10.1973,147.14,147.05,263.15]
[1642193221000,34.2966,147.14,147.05,263.15]
[1642193221208,37.0156,147.14,147.05,263.15]
[1642193221406,12.9163,147.14,147.05,263.15]
[1642193221601,12.9163,147.14,147.05,263.41]
[1642193222404,12.9163,147.14,147.05,279.6068]
[1642193222902,41.871,147.14,147.05,279.6068]
[1642193224606,25.6737,147.14,147.05,346.9268]
[1642193224804,22.9547,147.14,147.05,346.9268]
[1642193225006,22.9547,147.14,147.05,279.6068]
[1642193225205,22.9547,147.14,147.05,279.3468]
[1642193225404,22.9547,147.14,147.05,110.1468]
[1642193226505,22.9547,147.14,147.05,110.4068]
[1642193227509,2.719,147.16,147.05,110.4068]
[1642193227708,34.1744,147.17,147.05,110.4068]
[1642193228510,34.1744,147.17,147.05,133.5459]
[1642193229611,29.1841938,147.16,147.05,133.5459]
[1642193229911,29.1841938,147.16,147.05,133.2859]
[1642193230111,2.719,147.15,147.05,133.2859]
[1642193230510,23.3373,147.14,147.05,133.2859]
[1642193231511,23.3373,147.14,147.05,133.0359]
[1642193231715,23.3373,147.14,147.05,133.2959]
[1642193231914,2.719,147.13,147.05,133.0359]
[1642193232315,2.719,147.13,147.05,109.8968]
[1642193232517,12.9168,147.13,147.05,99.7]
[1642193233319,10.1978,147.13,147.05,99.7]
[1642193233616,10.1978,147.13,147.05,99.95]
[1642193234418,32.85134228,147.13,147.05,99.95]
[1642193235321,10.1978,147.13,147.05,99.95]
[1642193235521,10.1978,147.13,147.05,110.1474]
[1642193236019,10.1978,147.13,147.05,110.4074]
[1642193236324,26.0563,147.14,147.05,110.4074]
[1642193241121,49.34230137,147.14,147.05,110.4074]
[1642193245726,26.0563,147.14,147.05,110.4074]
[1642193245924,23.3373,147.14,147.05,110.4074]
[1642193246126,2.719,147.16,147.05,110.4074]
[1642193246552,2.719,147.16,147.06,67.32]
[1642193246726,6.0,147.16,147.1,10.1943]
[1642193247129,6.0,147.16,147.1,10.4443]
[1642193247329,36.5324,147.17,147.1,10.4443]
[1642193247330,42.5324,147.17,147.1,10.4443]
[1642193249531,39.8134,147.17,147.1,10.4443]
[1642193249733,33.8134,147.17,147.1,10.4443]
[1642193249931,33.8134,147.17,147.1,10.7043]
[1642193250332,33.8134,147.17,147.1,16.7043]
[1642193251231,24.80442779,147.16,147.1,10.7043]
[1642193251533,27.52242779,147.16,147.1,10.7043]
[1642193251933,27.52242779,147.16,147.1,10.4443]
[1642193252133,27.52242779,147.16,147.1,0.25]
[1642193252332,27.52242779,147.16,147.08,10.4454]
[1642193252534,27.52242779,147.16,147.08,16.1954]
[1642193252934,2.718,147.16,147.08,16.1954]
[1642193253536,26.8514,147.17,147.08,16.1954]
[1642193253734,27.1014,147.17,147.08,16.1954]
[1642193254965,27.1014,147.17,147.08,16.7054]
[1642193256174,37.2967,147.17,147.08,16.7054]
[1642193256772,37.2967,147.17,147.08,16.4454]
[1642193260076,37.0467,147.17,147.08,16.4454]
[1642193260275,37.0467,147.17,147.08,16.7054]
[1642193260575,37.0467,147.17,147.08,16.4454]
[1642193260876,37.0467,147.17,147.08,16.7054]
[1642193264683,37.0467,147.17,147.08,16.4454]
[1642193264880,37.2967,147.17,147.08,16.4454]
[1642193265309,37.1967,147.17,147.08,16.1954]
[1642193266515,37.1967,147.17,147.08,16.4454]
[1642193267416,37.1967,147.17,147.08,6.25]
[1642193267613,46.8767,147.17,147.08,6.25]
[1642193267814,46.8767,147.17,147.08,0.25]
[1642193268014,46.8767,147.17,147.08,6.0]
[1642193268215,46.8767,147.17,147.08,6.25]
[1642193268618,46.8767,147.17,147.08,0.25]
[1642193268816,46.8767,147.17,147.08,6.25]
[1642193269417,46.8767,147.17,147.08,0.25]
[1642193269618,46.8767,147.17,147.08,6.0]
[1642193269820,46.8767,147.17,147.08,16.196]
[1642193270020,46.8767,147.17,147.08,16.706]
[1642193270318,26.7514,147.17,147.08,16.706]
[1642193270518,24.0334,147.17,147.09,9.68]
[1642193270917,24.0334,147.17,147.09,16.19]
[1642193271119,24.0334,147.17,147.11,10.1925]
[1642193271520,24.0334,147.17,147.11,16.7025]
[1642193274721,54.60357484,147.17,147.11,16.7025]
[1642193275823,54.60357484,147.17,147.11,0.25]
[1642193276023,57.32157484,147.17,147.09,0.25]
[1642193276423,57.32157484,147.17,147.06,36.27141605]
[1642193276623,57.32157484,147.17,147.06,30.4533]
[1642193277325,67.51667484,147.17,147.07,10.1949]
[1642193277526,67.51667484,147.17,147.07,16.7049]
[1642193279527,67.51667484,147.17,147.07,16.4549]
[1642193281029,67.51667484,147.17,147.07,16.7049]
[1642193282336,26.7514,147.17,147.07,16.7049]
[1642193283132,24.0334,147.17,147.08,67.32]
[1642193283333,24.0334,147.17,147.1,10.1931]
[1642193283631,24.0334,147.17,147.1,16.4431]
[1642193286937,26.7514,147.17,147.1,16.4431]
[1642193287639,2.718,147.17,147.1,16.4431]
[1642193287839,29.89002867,147.19,147.1,16.4431]
[1642193288040,27.17202867,147.19,147.1,16.7031]
[1642193288442,27.17202867,147.19,147.1,16.4431]
[1642193289339,23.8904,147.18,147.1,16.7031]
[1642193290542,23.8904,147.18,147.1,26.3831]
[1642193291143,2.718,147.22,147.1,26.3831]
[1642193291344,25.5785,147.24,147.1,57.21207588]
[1642193291569,25.5785,147.24,147.11,0.30113369]
[1642193291742,22.8605,147.24,147.16,10.1887]
[1642193291941,22.8605,147.24,147.16,16.4387]
[1642193292345,22.8605,147.24,147.16,16.6987]
[1642193293847,22.8605,147.24,147.16,16.4387]
[1642193294147,51.75356653,147.24,147.16,10.4387]
[1642193294548,51.75356653,147.24,147.16,16.4387]
[1642193294749,22.8605,147.24,147.16,16.4387]
[1642193294949,22.8605,147.24,147.16,22.6147]
[1642193295247,22.8473,147.25,147.17,1.70077588]
[1642193295448,22.8473,147.25,147.2,10.1864]
[1642193295647,22.8473,147.25,147.2,18.6214]
[1642193295847,22.8473,147.25,147.2,24.8714]
[1642193296246,22.8473,147.25,147.2,25.1314]
[1642193296447,25.3156,147.28,147.2,25.1314]
[1642193296647,53.01506182,147.28,147.2,24.8714]
[1642193296849,53.01506182,147.28,147.2,6.25]
[1642193297147,53.01506182,147.28,147.2,0.25]
[1642193297347,63.20246182,147.28,147.2,0.25]
[1642193297547,12.9044,147.28,147.16,15.93]
[1642193297747,12.9044,147.28,147.2,1.70077588]
[1642193297748,2.717,147.28,147.2,1.70077588]
[1642193297951,26.7729,147.3,147.23,10.1839]
[1642193298148,26.7729,147.3,147.23,18.2999]
[1642193298348,26.7729,147.3,147.23,24.5499]
[1642193298551,26.7729,147.3,147.23,24.8099]
[1642193299377,24.0559,147.3,147.23,24.8099]
[1642193301078,29.40694312,147.29,147.23,24.8099]
[1642193301279,29.40694312,147.29,147.23,10.4339]
[1642193301679,29.40694312,147.29,147.23,0.25]
[1642193302080,29.40694312,147.29,147.21,16.6956]
[1642193302381,2.716,147.28,147.21,16.6956]
[1642193303082,26.5197,147.28,147.21,16.6956]
[1642193303280,26.5197,147.28,147.21,16.4356]
[1642193303481,26.5197,147.28,147.21,6.25]
[1642193303681,26.7697,147.28,147.21,0.25]
[1642193304081,32.7697,147.28,147.17,4.12618187]
[1642193304485,42.9572,147.28,147.17,4.12618187]
[1642193304983,42.9572,147.28,147.17,0.25]
[1642193305484,42.9572,147.28,147.16,10.1891]
[1642193306582,42.9572,147.28,147.16,10.4491]
[1642193306783,42.9572,147.28,147.16,10.6991]
[1642193308488,9.68,147.27,147.16,0.25]
[1642193308691,27.2366,147.26,147.16,0.25]
[1642193308989,10.1902,147.24,147.14,10.4402]
[1642193309192,36.1561,147.24,147.14,10.4402]
[1642193309991,36.1561,147.24,147.14,16.4402]
[1642193310193,36.1561,147.24,147.14,16.7002]
[1642193310394,25.9659,147.24,147.14,16.7002]
[1642193310895,31.9659,147.24,147.14,16.7002]